bitfinex-derivatives/quotes_BTCF0:USTF0_20241226
["timestamp","ask_amount","ask_price","bid_price","bid_amount"]
[1735195151983,4e-05,98073.0,98072.0,0.00852929]
[1735195152184,4e-05,98073.0,98072.0,0.01052929]
[1735195152585,0.00104,98073.0,98072.0,0.01052929]
[1735195155179,0.040824,98084.0,98082.0,0.040824]
[1735195155386,0.040824,98084.0,98083.0,0.031]
[1735195155582,0.040824,98084.0,98083.0,0.03108]
[1735195156799,0.040824,98084.0,98083.0,0.03308]
[1735195167103,0.12134788,98094.0,98083.0,0.03308]
[1735195167301,0.12134788,98094.0,98093.0,0.04082]
[1735195167499,0.12134788,98094.0,98093.0,0.0409]
[1735195167701,0.15174417,98101.0,98099.0,0.040817]
[1735195168096,0.15174417,98101.0,98100.0,8e-05]
[1735195168894,0.15574417,98101.0,98100.0,8e-05]
[1735195169105,0.004,98101.0,98100.0,8e-05]
[1735195169403,0.04081,98117.0,98101.0,0.040816]
[1735195169595,0.04081,98117.0,98110.0,0.040813]
[1735195169793,0.04081,98117.0,98116.0,8e-05]
[1735195171009,0.04681,98117.0,98116.0,0.00108]
[1735195171704,0.006,98117.0,98116.0,0.00108]
[1735195171900,0.015,98117.0,98116.0,0.00108]
[1735195172100,0.015,98117.0,98116.0,0.04189]
[1735195172405,0.015,98117.0,98116.0,0.04289]
[1735195172997,0.012,98117.0,98116.0,0.04189]
[1735195173194,0.011,98117.0,98116.0,0.04289]
[1735195175707,0.011,98117.0,98116.0,0.05309442]
[1735195183306,0.040804,98131.0,98127.0,0.040806]
[1735195183706,0.040804,98131.0,98130.0,8e-05]
[1735195184814,0.049804,98131.0,98130.0,0.00108]
[1735195185914,0.056804,98131.0,98130.0,0.00108]
[1735195186701,0.055804,98131.0,98130.0,0.00208]
[1735195188804,0.015,98131.0,98130.0,0.00208]
[1735195199218,0.015,98131.0,98130.0,0.18500852]
[1735195199817,0.009,98131.0,98130.0,0.18400852]
[1735195200016,0.015,98131.0,98130.0,0.18500852]
[1735195200322,0.012,98131.0,98130.0,0.00208]
[1735195201224,0.04081,98117.0,98101.0,0.04083889]
[1735195201525,0.04085,98117.0,98116.0,0.16793906]
[1735195201825,0.04085,98117.0,98116.0,0.09933906]
[1735195202414,0.04485,98117.0,98116.0,0.09933906]
[1735195203312,0.09445062,98117.0,98107.0,0.06548255]
[1735195203518,0.040814,98108.0,98107.0,0.06548255]
[1735195203719,0.040817,98101.0,98100.0,0.06548255]
[1735195203923,4e-05,98108.0,98096.0,0.18491867]
[1735195204121,0.040817,98100.0,98098.0,0.09985563]
[1735195204321,0.040817,98100.0,98096.0,0.18491867]
[1735195204322,4e-05,98098.0,98096.0,0.18491867]
[1735195204825,4e-05,98098.0,98096.0,0.00152896]
[1735195206124,0.00104,98098.0,98096.0,0.00152896]
[1735195207517,0.041858,98098.0,98096.0,0.00152896]
[1735195207829,4e-05,98097.0,98096.0,0.00152896]
[1735195209031,4e-05,98097.0,98096.0,0.00252896]
[1735195209425,0.00104,98097.0,98096.0,0.00152896]
[1735195209631,0.00104,98097.0,98096.0,0.00252896]
[1735195210834,0.00104,98097.0,98096.0,0.04334796]
[1735195211131,0.09098645,98105.0,98104.0,0.040815]
[1735195211523,0.040812,98112.0,98096.0,0.00252896]
[1735195211524,0.09098645,98107.0,98096.0,0.00252896]
[1735195211725,0.09098645,98107.0,98106.0,0.040815]
[1735195213020,0.040813,98111.0,98106.0,0.040815]
[1735195213331,0.003,98107.0,98106.0,0.040815]
[1735195214032,0.006,98107.0,98106.0,0.040815]
[1735195214719,0.003,98107.0,98106.0,0.040815]
[1735195214924,0.006,98107.0,98106.0,0.040815]
[1735195215324,0.003,98107.0,98106.0,0.040815]
[1735195215525,0.003,98107.0,98105.0,0.032]
[1735195216032,0.040822,98087.0,98077.0,0.01000267]
[1735195216229,0.040822,98087.0,98078.0,0.0331]
[1735195216537,0.040862,98087.0,98078.0,0.0331]
[1735195216924,0.040826,98079.0,98078.0,0.0331]
[1735195217424,0.040866,98079.0,98078.0,0.0331]
[1735195218230,0.040866,98079.0,98078.0,0.0361]
[1735195219118,0.041866,98079.0,98078.0,0.0441]
[1735195221833,0.041866,98079.0,98078.0,0.0431]
[1735195222542,0.041866,98079.0,98078.0,0.2231]
[1735195229929,0.041866,98079.0,98078.0,0.0431]
[1735195230839,0.041866,98079.0,98078.0,0.01]
[1735195231039,0.05199948,98079.0,98072.0,0.0629]
[1735195231235,0.040828,98073.0,98072.0,0.0308]
[1735195231435,0.040831,98066.0,98065.0,0.0323]
[1735195231637,4e-05,98073.0,98065.0,0.0323]
[1735195231834,0.05195948,98079.0,98077.0,0.040826]
[1735195231835,0.001,98079.0,98077.0,0.040826]
[1735195232139,0.001,98079.0,98065.0,0.13215563]
[1735195232339,0.001,98073.0,98072.0,0.007]
[1735195232728,0.001,98073.0,98072.0,0.01]
[1735195233440,0.001,98073.0,98072.0,0.009]
[1735195234341,0.040828,98074.0,98072.0,0.001]
[1735195234844,0.040828,98074.0,98073.0,8e-05]
[1735195235640,0.041828,98074.0,98073.0,8e-05]
[1735195236539,0.040828,98074.0,98073.0,0.00508]
[1735195236840,0.040828,98074.0,98073.0,0.00608]
[1735195238248,0.13173352,98074.0,98073.0,0.00108]
[1735195238436,0.13173352,98074.0,98073.0,0.00508]
[1735195241141,0.040828,98074.0,98073.0,0.00508]
[1735195247155,0.16206437,98074.0,98073.0,0.00508]
[1735195248557,0.07133637,98075.0,98073.0,0.045908]
[1735195248855,0.07133637,98075.0,98074.0,8e-05]
[1735195249452,0.07133637,98075.0,98074.0,0.18008]
[1735195249843,0.02143637,98075.0,98074.0,0.18408]
[1735195250045,0.09108016,98078.0,98074.0,0.18408]
[1735195250341,0.09108016,98078.0,98077.0,0.040907]
[1735195251248,0.09108016,98082.0,98077.0,0.040907]
[1735195251450,0.040825,98081.0,98077.0,0.043907]
[1735195251647,0.040825,98081.0,98078.0,0.0326]
[1735195252047,0.040826,98079.0,98078.0,0.0326]
[1735195253250,0.040826,98079.0,98078.0,0.0346]
[1735195254566,0.00152984,98094.0,98079.0,0.040826]
[1735195254567,0.09108016,98083.0,98079.0,0.040826]
[1735195255356,0.13190416,98083.0,98079.0,0.040826]
[1735195255851,0.13190416,98083.0,98079.0,0.042826]
[1735195255852,0.09108016,98082.0,98079.0,0.042826]
[1735195256856,0.09108016,98082.0,98081.0,0.040825]
[1735195258251,0.09208016,98082.0,98081.0,0.040825]
[1735195258454,0.001,98082.0,98081.0,0.041825]
[1735195259250,0.001,98082.0,98081.0,0.221825]
[1735195259845,0.09108016,98087.0,98081.0,0.221825]
[1735195260153,0.09108016,98087.0,98086.0,0.040903]
[1735195260756,0.04118016,98087.0,98086.0,0.040903]
[1735195261053,0.15164408,98098.0,98097.0,0.040818]
[1735195261563,0.15164408,98109.0,98102.0,0.040816]
[1735195261757,0.15164408,98109.0,98103.0,0.0329]
[1735195262063,0.15164408,98109.0,98105.0,8e-05]
[1735195262654,0.00152928,98126.0,98105.0,8e-05]
[1735195262655,0.18314408,98119.0,98105.0,8e-05]
[1735195262956,0.04081,98117.0,98105.0,8e-05]
[1735195263259,0.040811,98115.0,98105.0,8e-05]
[1735195263751,0.00903861,98106.0,98105.0,8e-05]
[1735195264348,0.00603861,98106.0,98105.0,0.00108]
[1735195264550,0.01303861,98106.0,98105.0,0.00108]
[1735195264749,0.07643861,98106.0,98105.0,0.00108]
[1735195265162,0.040818,98098.0,98097.0,0.2442638]
[1735195265459,0.040818,98098.0,98084.0,0.0307]
[1735195265460,0.040822,98089.0,98084.0,0.0307]
[1735195265653,0.040822,98089.0,98079.0,0.040825]
[1735195265853,4e-05,98085.0,98083.0,0.040824]
[1735195267361,0.00104,98085.0,98083.0,0.040824]
[1735195267561,0.07585878,98106.0,98097.0,0.040818]
[1735195267562,0.00203861,98106.0,98097.0,0.040818]
[1735195267764,0.00203861,98106.0,98096.0,0.09985563]
[1735195267960,0.00203861,98106.0,98105.0,0.040815]
[1735195268151,0.00203861,98106.0,98105.0,0.040895]
[1735195268967,0.00903861,98106.0,98105.0,0.040895]
[1735195269162,0.15164408,98112.0,98105.0,8e-05]
[1735195269369,0.15164408,98112.0,98111.0,0.040812]
[1735195269572,0.040809,98121.0,98111.0,8e-05]
[1735195269757,0.040805,98129.0,98119.0,0.040809]
[1735195270067,0.040806,98127.0,98119.0,0.040809]
[1735195270467,0.040806,98127.0,98111.0,0.09985563]
[1735195270655,0.15164408,98137.0,98124.0,0.040807]
[1735195270968,0.01052909,98128.0,98124.0,0.040807]
[1735195271163,0.008,98127.0,98124.0,0.040807]
[1735195271671,0.017,98127.0,98119.0,0.001]
[1735195271968,4e-05,98120.0,98119.0,0.041809]
[1735195272367,4e-05,98120.0,98119.0,0.001]
[1735195272573,0.06544,98120.0,98119.0,0.001]
[1735195272863,0.06544,98120.0,98111.0,0.001]
[1735195273258,0.040815,98104.0,98103.0,0.2442638]
[1735195273662,0.040855,98104.0,98103.0,0.2442638]
[1735195274174,0.040816,98103.0,98090.0,0.040821]
[1735195274362,4e-05,98104.0,98090.0,0.040821]
[1735195274673,4e-05,98091.0,98090.0,0.040821]
[1735195276363,4e-05,98091.0,98075.0,0.2442638]
[1735195276567,0.040824,98084.0,98075.0,0.2442638]
[1735195276766,0.040824,98084.0,98074.0,0.040828]
[1735195276767,4e-05,98078.0,98074.0,0.040828]
[1735195277468,4e-05,98078.0,98076.0,0.040827]
[1735195277866,4e-05,98078.0,98077.0,0.00452931]
[1735195281872,4e-05,98078.0,98077.0,0.003]
[1735195289171,0.03084,98078.0,98077.0,0.003]
[1735195299280,0.040827,98077.0,98054.0,0.0303]
[1735195299591,4e-05,98055.0,98054.0,0.0303]
[1735195300472,4e-05,98055.0,98054.0,0.0393]
[1735195300676,4e-05,98055.0,98054.0,0.0443]
[1735195301075,0.00104,98055.0,98054.0,0.0443]
[1735195301480,0.00104,98055.0,98054.0,0.0393]
[1735195301787,0.00104,98055.0,98054.0,0.0443]
[1735195309099,0.00104,98055.0,98054.0,0.2885638]
[1735195310198,0.00104,98055.0,98054.0,0.0443]
[1735195313695,0.00104,98055.0,98054.0,0.014]
[1735195313899,0.040839,98047.0,98046.0,0.30526328]
[1735195314395,0.040879,98047.0,98046.0,0.30526328]
[1735195314996,0.040879,98047.0,98046.0,0.30926328]
[1735195315497,0.040879,98047.0,98046.0,0.004]
[1735195316085,0.040879,98047.0,98046.0,0.011]
[1735195316390,0.041879,98047.0,98046.0,0.011]
[1735195316693,0.00104,98047.0,98046.0,0.011]
[1735195317098,0.15164408,98051.0,98046.0,0.011]
[1735195317698,0.15164408,98051.0,98047.0,0.18]
[1735195318004,0.15164408,98051.0,98050.0,0.040838]
[1735195318492,0.040835,98058.0,98052.0,0.040837]
[1735195318692,0.040835,98058.0,98053.0,0.220836]
[1735195318902,0.040835,98058.0,98057.0,8e-05]
[1735195319994,0.041835,98058.0,98057.0,8e-05]
[1735195320702,0.041835,98058.0,98057.0,0.00108]
[1735195321088,0.041835,98058.0,98057.0,0.00608]
[1735195323802,0.001,98058.0,98057.0,0.00608]
[1735195332406,0.001,98058.0,98057.0,0.04696286]
[1735195332713,0.001,98058.0,98057.0,0.22696286]
[1735195333008,0.12135876,98063.0,98057.0,0.22696286]
[1735195333202,0.12135876,98063.0,98058.0,0.04088286]
[1735195333402,0.12135876,98063.0,98062.0,0.040913]
[1735195334012,0.00153033,98067.0,98066.0,0.040831]
[1735195334196,0.07015876,98073.0,98072.0,0.040829]
[1735195334501,0.07015876,98073.0,98072.0,0.040909]
[1735195335503,0.040825,98082.0,98074.0,0.040828]
[1735195335902,0.040825,98082.0,98081.0,8e-05]
[1735195336814,0.041825,98082.0,98081.0,8e-05]
[1735195338509,0.001,98082.0,98081.0,0.040905]
[1735195338809,0.004,98082.0,98081.0,0.040905]
[1735195341705,0.004,98082.0,98081.0,0.220905]
[1735195342905,0.004,98082.0,98081.0,0.040905]
[1735195343305,0.004,98082.0,98081.0,8e-05]
[1735195344406,0.004,98082.0,98081.0,0.040905]
[1735195346209,0.004,98082.0,98081.0,0.220905]
[1735195347919,0.004,98082.0,98081.0,0.240905]
[1735195353218,0.004,98082.0,98081.0,0.060905]
[1735195361919,0.004,98082.0,98081.0,0.24419317]
[1735195362929,0.004,98082.0,98081.0,0.060905]
[1735195367437,0.0378,98082.0,98081.0,0.060905]
[1735195368738,0.0378,98082.0,98081.0,0.24450868]
[1735195369925,0.0378,98082.0,98081.0,0.20368368]
[1735195370225,0.0378,98082.0,98081.0,0.15188368]
[1735195370426,0.0378,98082.0,98071.0,0.30526328]
[1735195370724,4e-05,98072.0,98071.0,0.30526328]
[1735195370921,0.03154,98072.0,98071.0,0.30526328]
[1735195371736,0.03154,98072.0,98071.0,0.30826328]
[1735195372529,0.03154,98072.0,98071.0,0.003]
[1735195381547,4e-05,98072.0,98071.0,0.003]
[1735195381949,4e-05,98072.0,98071.0,0.002]
[1735195382251,4e-05,98072.0,98071.0,0.182]
[1735195382443,0.00104,98072.0,98071.0,0.182]
[1735195383035,0.09100522,98076.0,98071.0,0.182]
[1735195383238,0.09100522,98076.0,98075.0,0.040827]
[1735195383447,0.09100522,98076.0,98075.0,0.040907]
[1735195384449,0.09100522,98077.0,98075.0,0.041907]
[1735195384838,0.09100522,98077.0,98076.0,8e-05]
[1735195386450,0.09200522,98077.0,98076.0,8e-05]
[1735195389139,0.001,98077.0,98076.0,8e-05]
[1735195391554,0.09204649,98077.0,98076.0,8e-05]
[1735195393156,0.001,98077.0,98076.0,8e-05]
[1735195394757,0.041827,98077.0,98076.0,8e-05]
[1735195398762,0.1633205,98077.0,98076.0,8e-05]
[1735195400063,0.041827,98077.0,98076.0,8e-05]
[1735195403650,0.15164408,98081.0,98076.0,8e-05]
[1735195403955,0.09964408,98081.0,98080.0,0.040905]
[1735195404152,0.09964408,98081.0,98080.0,0.08107261]
[1735195404560,0.09964408,98081.0,98080.0,0.26107261]
[1735195404869,0.09964408,98081.0,98080.0,0.46547386]
[1735195404870,0.001,98081.0,98080.0,0.46547386]
[1735195405657,0.002,98081.0,98080.0,0.46547386]
[1735195405969,0.003,98081.0,98080.0,0.46547386]
[1735195406266,0.003,98081.0,98080.0,0.220905]
[1735195413263,0.003,98081.0,98080.0,0.46541495]
[1735195414759,0.003,98081.0,98080.0,0.220905]
[1735195426476,0.09112759,98091.0,98090.0,0.040821]
[1735195426876,0.09112759,98092.0,98090.0,0.040901]
[1735195427380,0.09112759,98092.0,98091.0,8e-05]
[1735195428371,0.040819,98096.0,98091.0,8e-05]
[1735195428566,0.003,98092.0,98091.0,8e-05]
[1735195428766,0.003,98092.0,98090.0,0.040821]
[1735195428967,0.0332,98091.0,98090.0,0.040821]
[1735195429175,0.03324,98091.0,98090.0,0.040821]
[1735195430378,0.03524,98091.0,98090.0,0.040821]
[1735195431175,0.03824,98091.0,98090.0,0.040821]
[1735195438375,0.00504,98091.0,98090.0,0.040821]
[1735195441985,0.00504,98091.0,98090.0,0.28528727]
[1735195442195,0.045861,98091.0,98090.0,0.24446627]
[1735195442386,0.045861,98091.0,98090.0,0.19236627]
[1735195442877,0.00504,98091.0,98090.0,0.19236627]
[1735195443281,0.05465127,98091.0,98090.0,0.040821]
[1735195444683,0.05465127,98091.0,98090.0,0.05115482]
[1735195445281,0.12658468,98091.0,98090.0,0.05115482]
[1735195446681,0.00504,98091.0,98090.0,0.05115482]
[1735195448880,0.00504,98091.0,98090.0,0.23115482]
[1735195451185,0.09620495,98091.0,98090.0,0.23115482]
[1735195452688,0.00504,98091.0,98090.0,0.27111199]
[1735195453084,0.12154468,98096.0,98090.0,0.23029099]
[1735195453288,0.12154468,98096.0,98095.0,0.040819]
[1735195453591,0.15193085,98104.0,98103.0,0.040816]
[1735195454683,0.09112768,98108.0,98100.0,0.040817]
[1735195454889,0.09112768,98108.0,98107.0,0.040814]
[1735195455084,0.09112768,98108.0,98107.0,0.040894]
[1735195455590,0.09265714,98109.0,98107.0,0.040894]
[1735195456089,0.09265714,98109.0,98108.0,8e-05]
[1735195456989,0.00152946,98109.0,98108.0,8e-05]
[1735195457692,0.01052946,98109.0,98108.0,8e-05]
[1735195458389,0.01052946,98109.0,98108.0,0.00108]
[1735195458583,0.01652946,98109.0,98108.0,0.00208]
[1735195460481,0.01652946,98109.0,98108.0,0.01237603]
[1735195460687,0.01652946,98109.0,98108.0,0.00208]
[1735195463995,0.01652946,98109.0,98108.0,0.01217156]
[1735195463996,0.015,98109.0,98108.0,0.01217156]
[1735195464185,0.09112768,98118.0,98117.0,0.04081]
[1735195464701,0.15193085,98132.0,98117.0,0.22089]
[1735195464888,0.15193085,98132.0,98131.0,0.040804]
[1735195465087,0.15193085,98132.0,98131.0,0.040884]
[1735195465792,0.040802,98137.0,98131.0,0.040884]
[1735195466088,0.040802,98137.0,98136.0,8e-05]
[1735195466492,0.0351,98142.0,98137.0,0.040802]
[1735195466690,0.0351,98142.0,98136.0,8e-05]
[1735195466691,0.0351,98142.0,98141.0,0.0408]
[1735195466893,0.0351,98142.0,98141.0,0.04088]
[1735195467583,0.0411,98142.0,98141.0,0.04088]
[1735195467889,0.0481,98142.0,98141.0,0.04188]
[1735195468092,0.1189,98142.0,98141.0,0.04288]
[1735195470992,0.1189,98142.0,98141.0,0.00208]
[1735195481094,0.0835,98142.0,98141.0,0.00208]
[1735195481298,0.0481,98142.0,98141.0,0.00208]
[1735195486494,0.013,98142.0,98141.0,0.00208]
[1735195490900,0.013,98142.0,98141.0,0.03498]
[1735195493797,0.15193085,98154.0,98153.0,0.040795]
[1735195494004,0.16191876,98154.0,98153.0,0.040795]
[1735195494199,0.00471876,98154.0,98153.0,0.220875]
[1735195494396,0.18231702,98160.0,98153.0,0.220875]
[1735195494707,0.06556475,98170.0,98153.0,0.220795]
[1735195494708,0.040794,98155.0,98153.0,0.220795]
[1735195494901,0.040794,98155.0,98153.0,0.040795]
[1735195495102,0.008,98154.0,98153.0,0.041795]
[1735195495902,0.008,98155.0,98153.0,0.041795]
[1735195496108,0.008,98155.0,98153.0,0.042795]
[1735195496109,0.001,98154.0,98153.0,0.042795]
[1735195496892,0.001,98154.0,98153.0,0.0531805]
[1735195498202,0.001,98154.0,98153.0,0.2331805]
[1735195498800,0.18231702,98175.0,98153.0,0.2331805]
[1735195499112,0.04231437,98174.0,98173.0,8e-05]
[1735195500200,0.04331437,98174.0,98173.0,0.00108]
[1735195500401,0.04431437,98174.0,98173.0,0.00108]
[1735195501307,0.04431437,98174.0,98173.0,0.00208]
[1735195503001,0.00352837,98174.0,98161.0,0.040791]
[1735195503203,0.040791,98162.0,98161.0,0.040791]
[1735195504096,0.040791,98162.0,98161.0,0.041791]
[1735195504297,0.040796,98150.0,98149.0,0.18298103]
[1735195504505,0.040798,98147.0,98146.0,0.18298103]
[1735195504713,0.040798,98147.0,98146.0,0.13058103]
[1735195505216,0.040798,98147.0,98146.0,0.07768103]
[1735195505804,0.18231702,98155.0,98121.0,0.040808]
[1735195506110,4e-05,98123.0,98122.0,0.074908]
[1735195506509,4e-05,98123.0,98122.0,0.040808]
[1735195507216,4e-05,98123.0,98122.0,0.041808]
[1735195507908,0.00304,98123.0,98122.0,0.041808]
[1735195508415,0.00304,98123.0,98122.0,0.040808]
[1735195508605,0.00304,98123.0,98122.0,0.041808]
[1735195508606,0.00504,98123.0,98122.0,0.041808]
[1735195511302,0.00504,98123.0,98122.0,0.001]
[1735195520222,0.045847,98123.0,98122.0,0.001]
[1735195521120,0.040811,98114.0,98113.0,7.906e-05]
[1735195521624,0.040851,98114.0,98113.0,7.906e-05]
[1735195521827,0.040819,98097.0,98092.0,0.24387715]
[1735195522028,0.040819,98096.0,98092.0,0.24387715]
[1735195522318,4e-05,98093.0,98092.0,0.24387715]
[1735195523327,4e-05,98093.0,98091.0,0.040821]
[1735195523825,4e-05,98092.0,98091.0,0.040821]
[1735195525425,0.00104,98092.0,98091.0,0.040821]
[1735195525621,0.00104,98092.0,98091.0,0.220821]
[1735195526732,0.00104,98092.0,98091.0,0.040821]
[1735195528617,0.00104,98092.0,98091.0,0.220821]
[1735195529722,0.00104,98092.0,98091.0,0.18]
[1735195529922,0.00111906,98092.0,98085.0,0.0337]
[1735195530129,0.040826,98087.0,98085.0,0.0337]
[1735195530318,4e-05,98086.0,98083.0,0.040827]
[1735195530518,0.040827,98085.0,98083.0,0.040827]
[1735195530819,0.00107906,98092.0,98080.0,0.01299637]
[1735195530820,4e-05,98084.0,98080.0,0.01299637]
[1735195531021,4e-05,98084.0,98076.0,0.04083]
[1735195531220,4e-05,98081.0,98076.0,0.04083]
[1735195531421,4e-05,98079.0,98076.0,0.04083]
[1735195532527,4e-05,98079.0,98078.0,0.00352925]
[1735195534316,0.040869,98079.0,98078.0,0.00352925]
[1735195535624,0.042869,98079.0,98078.0,0.00152925]
[1735195539628,0.042869,98079.0,98077.0,0.01587595]
[1735195539835,0.040834,98067.0,98055.0,0.1814]
[1735195540137,7.906e-05,98066.0,98062.0,0.040836]
[1735195540436,0.040835,98064.0,98062.0,0.040836]
[1735195541533,0.040835,98064.0,98062.0,0.042836]
[1735195541736,0.041835,98064.0,98062.0,0.048836]
[1735195542533,0.041835,98064.0,98062.0,0.008]
[1735195543730,0.040835,98064.0,98056.0,0.040839]
[1735195543934,0.040835,98064.0,98062.0,0.002]
[1735195544133,0.040835,98064.0,98062.0,0.042836]
[1735195544934,0.040835,98064.0,98062.0,0.040836]
[1735195545534,0.046835,98064.0,98062.0,0.041836]
[1735195546842,0.049835,98064.0,98062.0,0.041836]
[1735195548042,0.043835,98064.0,98062.0,0.040836]
[1735195548244,0.045835,98064.0,98062.0,0.040836]
[1735195548542,0.047835,98064.0,98062.0,0.040836]
[1735195548839,0.045835,98064.0,98062.0,0.040836]
[1735195549842,0.044835,98064.0,98062.0,0.040836]
[1735195550742,0.042835,98064.0,98062.0,0.040836]
[1735195550943,0.044835,98064.0,98062.0,0.040836]
[1735195552536,0.004,98064.0,98062.0,0.040836]
[1735195552736,0.004,98064.0,98063.0,0.0672]
[1735195554343,0.002,98064.0,98063.0,0.0672]
[1735195554545,0.004,98064.0,98063.0,0.0672]
[1735195555143,0.003,98064.0,98063.0,0.0672]
[1735195556145,0.001,98064.0,98063.0,0.0672]
[1735195556334,0.002,98064.0,98063.0,0.0672]
[1735195558839,7.906e-05,98066.0,98063.0,0.0672]
[1735195558840,7.906e-05,98066.0,98064.0,0.040835]
[1735195559632,0.12121032,98076.0,98075.0,0.040831]
[1735195560035,0.12121032,98076.0,98075.0,0.040911]
[1735195560240,0.15121997,98086.0,98083.0,0.040827]
[1735195560542,0.15121997,98086.0,98085.0,0.040827]
[1735195560933,0.15121997,98086.0,98085.0,0.040907]
[1735195561138,0.15121997,98086.0,98085.0,0.220907]
[1735195561446,0.15121997,98093.0,98089.0,0.040825]
[1735195561839,0.15121997,98093.0,98092.0,8e-05]
[1735195562444,0.15121997,98094.0,98092.0,8e-05]
[1735195562837,0.15121997,98094.0,98093.0,8e-05]
[1735195563238,0.15121997,98094.0,98093.0,0.040903]
[1735195563639,0.040823,98095.0,98093.0,0.040903]
[1735195563941,0.15121997,98098.0,98095.0,0.040822]
[1735195564244,0.15121997,98098.0,98097.0,8e-05]
[1735195565545,0.075821,98099.0,98097.0,8e-05]
[1735195565946,0.075821,98099.0,98098.0,8e-05]
[1735195566152,0.040821,98099.0,98098.0,8e-05]
[1735195566537,0.15121997,98100.0,98099.0,0.040821]
[1735195566737,0.15121997,98101.0,98099.0,0.040821]
[1735195567152,0.15121997,98101.0,98100.0,8e-05]
[1735195568042,0.18231702,98107.0,98100.0,8e-05]
[1735195568243,0.18231702,98107.0,98106.0,0.040818]
[1735195568546,0.18231702,98107.0,98106.0,0.040898]
[1735195568940,0.00152931,98118.0,98117.0,0.040813]
[1735195569343,0.00152931,98118.0,98117.0,0.040893]
[1735195570356,0.00652931,98118.0,98117.0,0.040893]
[1735195570654,0.01552931,98118.0,98117.0,0.041893]
[1735195573744,0.05634231,98118.0,98117.0,0.00108]
[1735195574957,0.01552931,98118.0,98090.0,0.34368723]
[1735195575149,0.04082,98101.0,98094.0,0.040823]
[1735195575452,0.0323,98100.0,98094.0,0.040823]
[1735195575658,0.0323,98100.0,98097.0,0.040821]
[1735195576845,0.0353,98100.0,98097.0,0.040821]
[1735195582148,0.076121,98100.0,98097.0,0.040821]
[1735195583348,0.0353,98100.0,98091.0,0.18]
[1735195583550,0.040823,98093.0,98091.0,0.18]
[1735195585565,0.041823,98093.0,98091.0,0.18]
[1735195585863,0.042823,98093.0,98091.0,0.18]
[1735195587761,0.042823,98093.0,98083.0,0.040827]
[1735195587762,0.040825,98090.0,98083.0,0.040827]
[1735195588062,0.040825,98090.0,98084.0,0.040827]
[1735195588467,0.040825,98090.0,98085.0,0.040826]
[1735195589555,0.040825,98090.0,98085.0,0.042826]
[1735195591768,0.040825,98090.0,98085.0,0.040826]
[1735195593663,0.040825,98090.0,98086.0,0.18]
[1735195594967,0.041825,98090.0,98086.0,0.18]
[1735195596462,0.041825,98090.0,98086.0,0.220826]
[1735195596663,0.041825,98090.0,98088.0,0.040825]
[1735195598668,0.042825,98090.0,98088.0,0.040825]
[1735195599367,0.042825,98090.0,98089.0,0.18]
[1735195600573,0.041825,98090.0,98089.0,0.18]
[1735195601372,0.040825,98090.0,98089.0,0.18]
[1735195601974,0.09102866,98093.0,98089.0,0.18]
[1735195602378,0.09102866,98093.0,98091.0,0.040824]
[1735195602579,0.09102866,98093.0,98092.0,0.0112713]
[1735195602877,0.15202612,98104.0,98103.0,0.040819]
[1735195603068,0.15202612,98104.0,98103.0,0.05209007]
[1735195603269,0.18231702,98107.0,98103.0,0.05209007]
[1735195603474,0.18231702,98107.0,98105.0,0.040818]
[1735195603678,0.18231702,98107.0,98106.0,0.01127107]
[1735195604674,0.15239571,98107.0,98106.0,0.01127107]
[1735195605065,0.15539571,98107.0,98106.0,0.01127107]
[1735195605382,0.15539571,98107.0,98105.0,0.040818]
[1735195605982,0.003,98107.0,98105.0,0.040818]
[1735195606378,0.008,98107.0,98105.0,0.040818]
[1735195606677,0.005,98107.0,98105.0,0.040818]
[1735195606871,0.008,98107.0,98106.0,0.0354]
[1735195607282,0.008,98107.0,98106.0,0.2154]
[1735195608679,0.00152931,98118.0,98106.0,0.2154]
[1735195608880,0.15239571,98122.0,98108.0,0.09981008]
[1735195609181,0.15239571,98122.0,98121.0,0.040812]
[1735195610180,0.040808,98130.0,98121.0,0.040812]
[1735195610382,0.040808,98129.0,98121.0,0.040812]
[1735195610970,0.006,98122.0,98121.0,0.040812]
[1735195611369,0.015,98122.0,98121.0,0.040812]
[1735195611566,0.009,98122.0,98121.0,0.040812]
[1735195611784,0.009,98122.0,98121.0,0.041812]
[1735195612079,0.055808,98129.0,98123.0,0.040811]
[1735195612272,0.055808,98129.0,98121.0,0.002]
[1735195612477,0.055808,98129.0,98125.0,0.04081]
[1735195612478,0.047808,98129.0,98125.0,0.04081]
[1735195613672,0.040808,98129.0,98125.0,0.04081]
[1735195614085,0.048808,98129.0,98125.0,0.04181]
[1735195614276,0.008,98129.0,98128.0,0.040809]
[1735195614676,0.013,98129.0,98128.0,0.040809]
[1735195615478,0.005,98129.0,98128.0,0.040809]
[1735195615779,0.013,98129.0,98128.0,0.041809]
[1735195616481,0.008,98129.0,98128.0,0.041809]
[1735195616676,0.013,98129.0,98128.0,0.042809]
[1735195618787,0.013,98129.0,98128.0,0.222809]
[1735195619088,0.15239571,98141.0,98128.0,0.222809]
[1735195619385,0.15239571,98153.0,98131.0,0.09989008]
[1735195619593,0.040799,98151.0,98143.0,0.040802]
[1735195620392,0.0408,98150.0,98143.0,0.040802]
[1735195620599,0.00652899,98149.0,98143.0,0.041802]
[1735195620890,0.01452899,98149.0,98143.0,0.042802]
[1735195621689,0.05532899,98149.0,98143.0,0.042802]
[1735195623280,0.01452899,98149.0,98147.0,0.0408]
[1735195624287,0.00952899,98149.0,98147.0,0.0418]
[1735195624497,0.00952899,98149.0,98147.0,0.0428]
[1735195624498,0.00152899,98149.0,98147.0,0.0428]
[1735195625284,0.00152899,98149.0,98148.0,0.18]